Workbook

Sheet FY11-FY15
B1: Stewardship and Oversight Plan
F2: Total Selected Construction Cost: | G2: =SUM(J5:J47)*1000 -> 863706000 | M2: Last Updated : 8/14/2015 1:27:48 PM
B3: Prior FY STIP Projects | M3: Design | Y3: Design Build | AB3: Construction
B4: District | C4: Project # Contract ID Federal # | D4: County | E4: Route | F4: Description | G4: State FY | H4: Engineering ($1,000) | I4: ROW ($1,000) | J4: Construction ($1,000) | K4: Total ($1,000) | L4: Notes | M4: Conceptual Report ** | N4: Access Justification Requests * | O4: Design Exceptions * | P4: Value Engineering (VE) ** | Q4: Experimental Features * | R4: Preliminary Plans (Identify Percent Complete with FHWA Contact) * | S4: Bridge Type Size and Location (TS&L) ** | T4: Final Plans, Specifications, and Estimate (PS&E) approval * | U4: Transportation Management Plan (Includes TTCP) * | V4: Construction Authorization * | W4: Addenda * | X4: Financial plan (for approval if > $500M, for review/comment if > $100M) | Y4: Request for Qualifications (RFQ) ** | Z4: Request for Proposals (RFP) * | AA4: Alternative Applicable Standards (AAS) *** | AB4: Quality Management Plan (QMP) | AC4: Alternative Technical Concepts (ATCs) When applicable * | AD4: Bid analysis and concurrence in award *** | AE4: Initial Inspection | AF4: Intermediate Inspections | AG4: In-Depth Inspection | AH4: Final Inspection | AI4: Construction Change Orders * | AJ4: Value Engineering change proposals * | AK4: Final Acceptance | AM4: Project Contacts
B5: NW | C5: 1I2212 140124-A04 I-29-2(161) | D5: Holt | E5: 29 | F5: Resurface roadway from Rte. 59, south of Oregon, to the Bus. 71 interchange north of St. Joseph. | G5: 2014 | H5: 472 | I5: 0 | J5: 6800 | K5: =SUM(H5:J5) -> 7272 | L5: Need to core to determine pvmnt thickness. Will be a 14 mile mill and fill project. | AE5: ü | AH5: x | AI5: x | AJ5: x | AK5: x | AM5: Kevin Irving (FHWA), James Gillespie (MoDOT RE)
B6: NW | C6: 1I2213 141121-A01 I-29-2(164) | D6: Andrew | E6: IS-29 | F6: Resurface road from Bus. 71 interchange north of St. Joseph to 1.5 miles south of Rte. O. | G6: 2015 | H6: 995 | I6: 0 | J6: 9139 | K6: 10134 | AG6: x | AM6: Kevin Irving (FHWA), James Gillespie (MoDOT RE)
B7: NE | C7: 3I2188 150220-B02 I-70-3(241) | D7: Montgomery | E7: IS-70 | F7: Pavement improvements on westbound lanes from 1.1 miles east of Rte. F to the Callaway County line near New Florence. Involves bridges A2709 in the northbound and southbound lanes. | G7: 2015 | H7: 356 | I7: 0 | J7: 3880 | K7: 4236 | L7: Recommended Federal Oversight at least through the preliminsry design stage to determine the impact to the interstate, and possible ovesight during construction - F. Gonzalez | AD7: ü | AH7: x | AJ7: x | AK7: x | AM7: Felix Gonzlez (FHWA), Richard Domzalski (MoDOT RE)
B8: NE | C8: 3P2198 150320-B04 19-4(15) | D8: Montgomery | E8: 19 | F8: Bridge and pavement improvements from 0.8 mile north of Rte. WW to 0.3 mile south of Rte. WW near New Florence. Project involves bridge J0953. | G8: 2015 | H8: 979 | I8: 460 | J8: 5769 | K8: 7208 | AD8: ü | AE8: x | AF8: x | AH8: x | AI8: x | AJ8: x | AK8: x | AM8: Felix Gonzlez (FHWA), Richard Domzalski (MoDOT RE)
B9: KC | C9: 3I3003 150220-C01 I-70-2(104) | D9: Saline | E9: IS-70 | F9: Pavement and bridge improvements from 500' west of Blackwater River bridges to the Cooper County line. $1,400,000 district operations budget. Project involves bridges A0207 and G0518. | G9: 2015 | H9: 1154 | I9: 0 | J9: 10269 | K9: 11423 | AG9: ü | AM9: Kevin Irving (FHWA), Brian Iles (MoDOT RE)
B10: KC | C10: 4I1773 121116-C01 I-35-1(279) | D10: Clay | E10: IS-35 | F10: I-35 at Rt. 291-GRADING, DRAINAGE, ALT. PAVING, BRIDGE REPLACEMENT | G10: 2012 | H10: 1467 | I10: 55 | J10: 11143 | K10: 12665 | AE10: ü | AF10: ü | AH10: ü | AI10: x | AJ10: ü | AK10: x | AM10: Kevin Irving (FHWA), Zach Walker (MoDOT RE)
B11: KC | C11: 4I1916 100820-403 I-70-1(200) | D11: Jackson | E11: IS-70 | F11: Bridge and pavement improvements on I-70 between I-435 and 31st Street and bridge improvements on Rte. 40 over the Blue River and the Manchester Trafficway in Kansas City. Design/Build project. Project involves bridges L0966, L0967, J0526 and A0622. | G11: 2015 | H11: 9096 | I11: 50 | J11: 60017 | K11: 69163 | AE11: ü | AF11: ü | AG11: x | AH11: x | AI11: x | AJ11: x | AK11: x | AM11: Kevin Irving (FHWA), Susan Barry (MoDOT Project Director)
B12: KC | C12: 4I2012 130322-C01 I-35-1(283) | D12: Jackson | E12: IS-35 | F12: Bridge improvements over 23rd Street Trafficway. Project involves bridge L0232. | G12: 2013 | H12: 2360 | I12: 0 | J12: 13746 | K12: 16106 | AE12: ü | AF12: ü | AH12: ü | AI12: x | AJ12: ü | AK12: x | AM12: Kevin Irving (FHWA), Tom Markway (MoDOT RE)
B13: KC | C13: 4I2228 120525-C06 I-70-1(196) | D13: Jackson | E13: IS-70 | F13: North outer road relocation from Jefferson Court to west of Sunny Lane Drive in Grain Valley. Amendment 3 new major project. | G13: 2012 | H13: 219 | I13: 890 | J13: 2610 | K13: 3719 | AE13: ü | AF13: ü | AH13: ü | AI13: x | AJ13: ü | AK13: x | AM13: Kevin Irving (FHWA), Brian Iles (MoDOT RE)
B14: KC | C14: 4I2277 130322-C01 I-35-1(284) | D14: Jackson | E14: IS-35 | F14: Bridge improvements at Southwest Boulevard, BNSF Railroad, Jarboe and 27th Street in Kansas City. Project involves bridges A1701, A1702, A1703, A1705 and A1708. | G14: 2013 | H14: 984 | I14: 0 | J14: 6955 | K14: 7939 | AE14: ü | AF14: ü | AH14: ü | AI14: x | AJ14: ü | AK14: x | AM14: Kevin Irving (FHWA), Tom Markway (MoDOT RE)
B15: KC | C15: 4I2335 130125-C01 I-29-1(115) | D15: Platte | E15: IS-29 | F15: Interchange improvements at Tiffany Springs Parkway. SFY 2015 Cost share with the Kansas City TIF Commission. MoDOT's maximum is $4,727,356. TIF to provide design. | G15: 2013 | H15: 1026 | I15: 1047 | J15: 11547 | K15: 13620 | AE15: ü | AF15: ü | AH15: ü | AI15: x | AJ15: ü | AK15: x | AM15: Kevin Irving (FHWA), Zach Walker (MoDOT RE)
B16: KC | C16: 4I2383 | D16: Jackson | E16: IS-435 | F16: Bridge rehabilitation at Stadium Drive in Kansas City. $14,000 Statewide TE funds. Project involves bridges A0994 and A2851. | G16: 2015 | H16: 717 | I16: 0 | J16: 2334 | K16: 3051 | O16: - | U16: ü | V16: ü | AG16: x | AL16: Kevin Irving (FHWA), Lee Ann Kell (MoDOT PM) | AM16: Kevin Irving (FHWA), Tom Markway (MoDOT RE)
B17: KC | C17: 4I3005 141121-C01 I-35-1(285) | D17: Clay | E17: IS-35 | F17: Interchange, ramp and auxiliary lane improvements from the I-435 interchange to the Pleasant Valley Road/South Liberty Parkway/US 69 interchange. $13,194,000 Economic Development funds, $4,200,000 Liberty and $5,000,000 MARC STP-Urban. Project involves bridges A0496 and LO501. | G17: 2015 | H17: 5100 | I17: 120 | J17: 31075 | K17: 36295 | AC17: ü | AD17: ü | AE17: ü | AF17: x | AG17: x | AH17: x | AI17: x | AJ17: x | AK17: x | AM17: Kevin Irving (FHWA), Zach Walker (MoDOT RE)
B18: KC | C18: 4I3023 150123-C01 I-35-1(288) | D18: Clay | E18: IS-35 | F18: Bridge improvements, including the addition of an auxiliary lane, widening of the existing bridges and pavement replacement, over Poe Street in Claycomo. Project involves twin bridges L0759. | G18: 2015 | H18: 1016 | I18: 0 | J18: 8375 | K18: 9391 | AC18: ü | AE18: ü | AF18: x | AG18: x | AH18: x | AI18: x | AJ18: x | AK18: x | AM18: Kevin Irving (FHWA), Zach Walker (MoDOT RE)
B19: KC | C19: 4P1475 140523-C06 I-71-4(120) | D19: Cass | E19: IS-49 | F19: Signal improvements, replace bridge, and capacity improvements at the Rte. 291 interchange. Project involves bridge A1621. $10,510,000 Highways 71/291 Partners in Progress TDD. | G19: 2014 | H19: 1727 | I19: 1014 | J19: 12796 | K19: 15537 | AE19: ü | AF19: x | AG19: x | AH19: x | AI19: x | AJ19: x | AK19: x | AM19: Kevin Irving (FHWA), John Voss (MoDOT RE)
B20: KC | C20: 4P2247 150515-C05 FAF-71-4 (118) | D20: Cass | E20: IS-49 | F20: Construction of a new interchange at 211th Street from Rte. Y to Rte. J in Peculiar. Cost Share with Peculiar. $5.134 million Cost Share funds and $6.053 million city. MoDOT's maximum is $8.164 million. | G20: 2015 | H20: 2228 | I20: 304 | J20: 9251 | K20: 11783 | L20: AJR Approved - DDI | T20: ü | V20: ü | W20: ü | AC20: - | AD20: ü | AE20: x | AF20: x | AG20: x | AH20: x | AI20: x | AJ20: x | AK20: x | AM20: Kevin Irving (FHWA), Jon Voss (MoDOT RE)
B21: KC | C21: 4P2247B 150515-C05 FAF-71-4 (118) | D21: Cass | E21: CRD 211 Street | F21: Roadway improvements from the east outer road to School Road in Peculiar. Project funded with 100% city funds. Let in combination with 4P2247. | G21: 2015 | H21: 320 | I21: 57 | J21: 1383 | K21: 1760 | T21: ü | V21: ü | W21: ü | AC21: - | AD21: ü | AE21: x | AF21: x | AG21: x | AH21: x | AI21: x | AJ21: x | AK21: x | AM21: Kevin Irving (FHWA), Jon Voss (MoDOT RE)
B22: KC | C22: 4P2279 140709-C01 ACSTP-0691021 | D22: Platte | E22: 69 | F22: Bridge improvements over the Missouri River. Project involves the Platte Purchase bridge A0450 and the Fairfax Bridge K0456. Potential Design/Build project. $35,215,000 from KDOT. | G22: 2015 | H22: 3037 | I22: 500 | J22: 74052 | K22: 77589 | O22: x | AB22: ü | AD22: ü | AE22: ü | AF22: x | AG22: x | AH22: x | AI22: x | AJ22: x | AK22: x | AM22: Ken Foster (FHWA), Lisa Stupps (MoDOT Project Director)
B23: KC | C23: 4S2029 120525-C06 FAF-40-1(9) | D23: Jackson | E23: 40 | F23: Cost Share project with City of Grain Valley for intersection and roadway improvements to Rte. 40 and Rtes. AA/BB in the City of Grain Valley. MoDOT's maximum is $8,209,174. City of Grain Valley is responsible for 50% of project costs and costs in excess of $16,418,348. | G23: 2012 | H23: 1637 | I23: 2763 | J23: 13790 | K23: 18190 | AF23: ü | AG23: ü | AI23: ü | AJ23: x | AK23: ü | AL23: x | AM23: Kevin Irving (FHWA), Brian Iles (MoDOT RE)
B24: KC | C24: 4S3068 | D24: Jackson | E24: IS 70 | F24: Bridge improvements over I-70 in Kansas City. Project involves bridge A2842. | G24: 2015 | H24: 281 | I24: 0 | J24: 2335 | K24: 2616 | O24: - | U24: ü | V24: ü | AG24: x | AM24: Kevin Irving (FHWA), Tom Markway (MoDOT RE)
B25: CT | C25: 5I2172 ____NA_____ I-70-3(222) | D25: Boone | E25: IS-70 | F25: Bridge improvements over West Boulevard in Columbia. Design/Build project. Project involves bridge L0845 over West Boulevard. | G25: 2015 | H25: 2091 | I25: 10 | J25: 18363 | K25: 20464 | L25: Design/Build | M25: - | N25: - | O25: ü | Q25: x | S25: x | V25: ü | W25: - | Z25: ü | AA25: ü | AB25: x | AD25: ü | AE25: x | AF25: x | AG25: x | AH25: x | AI25: x | AJ25: x | AK25: x | AM25: Mike McGee (FHWA), Travis Koestner (MoDOT PD)
B26: CT | C26: 5P0820D 140919-D01 50-3(85) | D26: Cole | E26: 50 | F26: Interchange at Lafayette Street and capacity improvements from Monroe Street to Clark Avenue in Jefferson City. $999,829 from FY2010 Appropriations Bill Earmark Demo ID MO237. | G26: 2015 | H26: 0 | I26: 0 | J26: 16403 | K26: 16403 | L26: EIS | AD26: ü | AE26: ü | AF26: x | AG26: x | AH26: x | AI26: x | AJ26: x | AK26: x | AM26: Mike McGee (FHWA), Mike Dusenberg (MoDOT PM), Terry Imhoff (MoDOT RE)
B27: CT | C27: 5P0951B 120824-D01 FAF-50-3(82) | D27: Osage | E27: 50 | F27: Grading, bridges, paving and right of way acquisition for four-lane roadway from Route 63 junction to County Road 604 west of Linn. | G27: 2012 | H27: 1650 | I27: 4850 | J27: 32684 | K27: 39184 | AE27: ü | AF27: ü | AG27: ü | AH27: x | AI27: x | AJ27: - | AK27: x | AM27: Mike McGee (FHWA), Terry Imhoff (MoDOT RE)
B28: SL | C28: 6I2005 111021-F01 I-70-5(330) | D28: St Louis | E28: IS-70 | F28: Bridge improvements on westbound Blanchette Bridge over the Missouri River. Project involves bridge L0561. | G28: 2011 | H28: 6420 | I28: 0 | J28: 61714 | K28: 68134 | AH28: ü | AI28: ü | AJ28: ü | AK28: x | AM28: Greg Budd (FHWA), Niall Jansson (MoDOT RE)
B29: SL | C29: 6I2232 150220-FOl I-70-5(321) | D29: St. Louis | E29: IS-70 | F29: Bridge improvements at the I-270 directional interchanges. Project involves bridges A3749, A3750, A3752, A3753, A3743, A3744, A3746, A3747, A0180N, A0180S, A3745, A3748, A3765, A3729 and A3787. | G29: 2015 | H29: 1925 | I29: 0 | J29: 9551 | K29: 11476 | L29: Recommend full FHWA O/S given that work is at a system interchange. Construction O/S could be reduced if "bridge improvements" are minor in nature. GBudd | AD29: ü | AE29: x | AG29: x | AH29: x | AI29: x | AJ29: x | AK29: x | AM29: Felix Gonzlez (FHWA), Lee Hilner (MoDOT PM) Niall Jahsson(RE)
B30: SL | C30: 6I2276 141121-F01 I-70-4(193) | D30: St Charles | E30: I-70 | F30: Pavement improvements from Rt. K to Rt. C | G30: 2014 | H30: 288 | I30: 0 | J30: 3316 | K30: 3604 | L30: This one we should do a reduced level of O/S to make sure that MoDOT and St. Charles 1-way outer road proposal compliment each other, and to determine need to include MoDOT work into the current AJR projcess for the StChCo project. Recommend O/S through preliminary plan stage. GBudd | AH30: ü | AI30: ü | AJ30: x | AK30: x | AM30: Felix Gonzalez (FHWA), Jim Wright (MoDOT RE) | AN30: *Note: Anticipated NTP: February 2, 2015
B31: SL | C31: 6I2377B 140321-F01 0641066 | D31: St Louis City | E31: IS-64 | F31: Bridge improvements on the westbound Poplar Street bridge over the Mississippi River. Project involves bridge A1502, 1504, and 1505. | G31: 2014 | H31: 5153 | I31: 1000 | J31: 20948 | K31: 27101 | AE31: ü | AF31: x | AH31: x | AI31: x | AJ31: x | AK31: x | AM31: Dawn Perkins (FHWA), Scott Wahausen (MoDOT RE)
B32: SL | C32: 6I2381 140822-F01 I-64-1(64) | D32: St Louis | E32: IS-64 | F32: Pavement improvements from Rt. 340 to Ballas Rd. To be let in combinaation with J6I2434. | G32: 2015 | H32: 619 | I32: 0 | J32: 4678 | K32: 5297 | L32: This project is already shown in the STIP as a full O/S project. Recommend full O/S. Will be a combo with J6I2434. Total cost of $33M+/-. | AD32: ü | AE32: ü | AF32: ü | AH32: x | AI32: ü | AJ32: ü | AK32: x | AM32: Felix Gonzlez (FHWA), Tom Montes (MoDOT PM) John Lewis (MoDOT RE)
B33: SL | C33: 6I2382 140523-F01 I-170-5(269) | D33: St Louis | E33: I-170 | F33: Pavement improvements from I-270 to Rt. D | G33: 2014 | H33: 644 | I33: 0 | J33: 5024 | K33: 5668 | L33: This project is included in the STIP as an O/S project. This project shares end termini and delivery timeframe with adjacent project J6I3014. Assume that these will be let in combo, so should make O/S. Gbudd | AE33: ü | AH33: x | AI33: x | AJ33: ü | AM33: Greg Budd (FHWA), Niall Jannson (MoDOT RE)
B34: SL | C34: 6I2413 6I2413B 130628-F01 0705333 | D34: St Louis City | E34: IS-70 and LKS | F34: FY11 TIGER project: MoDOT - I-70 and ramp and JNEM park improvements, GRG - LKS improvements. Project involves bridges A1510, A1511, A1512, A1513. $2 M Public Lands funds, $700 K FTA/Metra, and $20 M TIGER Grant. | G34: 2012 2013 5513-14 5718-13 5763-13 | H34: 8557 | I34: 300 | J34: 53185 | K34: 62042 | L34: See Grant Agreement No. 24 0705(323) for J6I2413 PE and ROW match 0705(332) for J6I2413B PE and ROW match | AE34: ü | AF34: x | AG34: x | AH34: x | AI34: x | AJ34: x | AK34: x | AM34: Dawn Perkins (FHWA), John Grana (MoDOT RE) and Russ Klein (MoDOT LPA Liaison)
B35: SL | C35: 6I2434 140822-F01 I-64-1(72) | D35: St Louis | E35: IS-64 | F35: Capacity improvements from Rt. 340 to I-270. To be let in combination with J6I2381. | G35: 2015 | H35: 3425 | I35: 0 | J35: 24136 | K35: 27561 | L35: This project is already shown in the STIP as a full O/S project. Recommend full O/S. Will be a combo with J6I2381. Total cost of $33M+/-. | AD35: ü | AE35: ü | AF35: ü | AH35: x | AI35: ü | AJ35: ü | AK35: x | AM35: Felix Gonzlez (FHWA), Tom Montes (MoDOT PM) John Lewis (MoDOT RE)
B36: SL | C36: 6I3014 140321-F11 I-170-5(271) | D36: St Louis | E36: IS-170 | F36: Pavement and bridge improvements from Rte. D to north of I-64. Project involves bridges A2779 and A2788. | G36: 2014 | H36: 398 | I36: 0 | J36: 3683 | K36: 4081 | AE36: ü | AF36: - | AH36: ü | AI36: ü | AJ36: x | AK36: x | AM36: Felix Gonzalez (FHWA), Niall Jansson (MoDOT RE) | AN36: *Note: this project was suspended until next const. season.
B37: SL | C37: 6I3026B 140321-F01 0553096 | D37: St Louis City | E37: IS-55 | F37: Bridge improvements on the westbound Poplar Street bridge over the Mississippi River. Project involves bridge A1500. $3,000,000 IDOT funds. | G37: 2014 | H37: 383 | I37: 0 | J37: 6002 | K37: 6385 | AE37: ü | AF37: x | AH37: x | AI37: x | AJ37: x | AK37: x | AM37: Dawn Perkins (FHWA), Scott Washausen (MoDOT RE)
B38: SL | C38: 6I3034B&C 150515-F01 I-44-4(182) | D38: St Louis | E38: IS-44 | F38: Pavement and bridge improvements from Murdoch Avenue to Hampton Avenue. Project involves bridges A2368, A2318, A2394, A1739 and A1733. | G38: 2015 | H38: 3714 | I38: 5 | J38: 31516 | K38: 35235 | L38: Full FHWA O/S recommended. Gbudd | AD38: ü | AE38: x | AG38: x | AH38: x | AI38: x | AJ38: x | AK38: x | AM38: Felix Gonzlez (FHWA), Jeff Bohler (MoDOT PM) Scott Washausen (RE)
B39: SL | C39: 6P1436 120710-F01 40-5(103) | D39: St Charles | E39: IS-64 | F39: Construct new Boone Bridge and improve capacity from Rte. 94 to Spirit of St. Louis Boulevard. Design/Build project. Project involves bridge J1000. | G39: 2013 | H39: 6355 | I39: 1300 | J39: 122960 | K39: 130615 | AE39: ü | AF39: ü | AG39: ü | AH39: x | AI39: x | AJ39: x | AK39: x | AM39: Greg Budd (FHWA), Jim Gramaud (MoDOT RE)
B40: SL | C40: 6P2376 140523-F05 I-270-5(339) | D40: St Louis | E40: I-70 | F40: Intersection improvements from entrance ramp @ Dunn Road to WB I-270 | G40: 2014 | H40: 240 | I40: 40 | J40: 1086 | K40: 1366 | L40: Recommend O/S through preliminary design to determine impact to interstate and need for AJR. May end up that no O/S is needed, but should be involved early on to make determination. Gbudd | AE40: - | AH40: x | AI40: x | AJ40: x | AK40: x | AM40: Greg Budd (FHWA), Niall Jansson (MoDOT RE)
B41: SL | C41: 6U1028 130206-F01 FAF-364-1(35) | D41: St Charles | E41: 364 | F41: Route 364 -Page Ave. Phase 3 - Design Build | G41: 2013 | H41: 3679 | I41: 35662 | J41: 66000 | K41: 105341 | AE41: ü | AF41: ü | AG41: ü | AH41: ü | AI41: ü | AJ41: ü | AK41: x | AM41: Felix Gonzalez (FHWA), Dave Simmons (MoDOT RE)
B42: SW | C42: 7I2181 140919-G01 I-44-1(85) | D42: Jasper | E42: IS-44 | F42: Roadway and bridge improvements from east of Rte. 249 to Rte. 66. Project involves bridges A0624 and A0625. Economic Development project with Joplin. $5,575,090 Economic Development funds. $152,000 from 2009 IM Discretionary Earmark. | G42: 2015 | H42: 1107 | I42: 750 | J42: 9250 | K42: 11107 | L42: Economic Development part of I-44 interchange. | AD42: ü | AE42: ü | AH42: x | AI42: x | AJ42: x | AK42: x | AM42: Mike McGee (FHWA), Danica Stovall-Taylor (MoDOT PM), Jason Evenden (MoDOT RE)
B43: SW | C43: 8P0683 140611-G01 FAF-60-2(62) | D43: Greene | E43: 60 | F43: Roadway improvements from County Road 243 to east of Rogersville. Design/Build project. | G43: 2014 | H43: 3842 | I43: 5180 | J43: 28249 | K43: 37271 | L43: CN is construction and RW cost | AE43: ü | AF43: x | AH43: x | AI43: x | AJ43: x | AK43: x | AM43: Mike McGee (FHWA), Sean Matlock (MoDOT Project Director)
B44: SW | C44: 8U0500 140822-G08 65-2(86) | D44: Greene | E44: 65 | F44: Bridge and interchange improvements at Battlefield Road in Springfield. Project involves bridge A1656. $3,708,853 Cost Share, $1,189,657 Ozarks Transportation Organization BRM, $4,153,500 Springfield, $2,291,368 Springfield STP-Urban and $500,000 Greene | G44: 2015 | H44: 2029 | I44: 566 | J44: 11290 | K44: 13885 | L44: Full Oversight. RB | AE44: ü | AF44: x | AH44: x | AI44: x | AJ44: x | AK44: x | AM44: Mike McGee (FHWA), Stacy Reese (MoDOT PM), Brad Gripka (MoDOT RE)
B45: SW | C45: 3200718 | D45: Jasper | E45: 5 City Streets | F45: FY12 TIGER project, Maiden Lane, Schifferdecker, 26th Street, 20th Stree RR Overpass, and 20th Street Transit | G45: 02HL-10 01HL-11 03TG 01TG-12 01TG-13 | H45: 540 | I45: 3297 | J45: 14905 | K45: 18742 | L45: See Grant Agreement No. 8 | AE45: ü | AF45: x | AG45: x | AH45: x | AI45: x | AJ45: x | AK45: x | AM45: Dawn Perkins (FHWA), Jim McDiarmid (MoDOT LPA Liaison)
B46: SE | C46: 9P2244B 150123-H02 I-55-1(149) | D46: Pemiscot | E46: IS-55 | F46: Pavement improvements northbound from 3.9 miles south of Rte. 84 to 0.3 mile south of Rte. 84. | G46: 2015 | H46: 323 | I46: 0 | J46: 4102 | K46: 4425 | L46: MOT - System Interchange (I-55/I-155) | AG46: ü | AM46: Mike McGee (FHWA), Eric Krapf (MoDOT PM), Brian Holt (MoDOT RE)
B47: SE | C47: 0P0959 120525-H01 FAF-67-1(22) | D47: Butler | E47: 67 | F47: Capacity improvements 1.5 miles south of Rte. M to 1 mile south of Rte. 160. Delta Regional Authority is providing funds of $676,000 in FY 2012. Amendment 3 new major project. | G47: 2012 | H47: 1030 | I47: 3242 | J47: 17395 | K47: 21667 | AE47: ü | AF47: ü | AH47: ü | AI47: x | AJ47: - | AK47: x | AM47: Mike McGee (FHWA), Audie Pulliam (MoDOT RE)
M49: LEGEND
N51: x | P51: Action requiring FHWA involvement | AA51: * | AC51: Submittal requires FHWA approval
N53: ü | P53: Action completed | AA53: ** | AC53: Submittal for FHWA review/comment
N55: - | P55: No FHWA approvals/actions were required | AA55: *** | AC55: Submittal requires FHWA concurrence
N57: ü | P57: Additional FHWA approval action taken

Sheet 2016
B1: Stewardship and Oversight Plan
F2: 2016 Total Selected Construction Cost: 2016 STIP Construction Award Amount: | G2: $297,501,000 $596,400,000 | M2: Last Updated : 8/14/2015 1:27:48 PM
B3: 2016 STIP Project | M3: Design | Y3: Design Build | AB3: Construction
B4: District | C4: Job No. | D4: County | E4: Route | F4: Description | G4: State FY | H4: Engineering ($1,000) | I4: ROW ($1,000) | J4: Construction ($1,000) | K4: Total ($1,000) | L4: Notes | M4: Conceptual Report ** | N4: Access Justification Requests * | O4: Design Exceptions * | P4: Value Engineering (VE) ** | Q4: Experimental Features * | R4: Preliminary Plans (Identify Percent Complete with FHWA Contact) * | S4: Bridge Type, Size, and Location (TS&L) ** | T4: Final Plans, Specifications, and Estimate (PS&E) approval * | U4: Transportation Management Plan (Includes TTCP) * | V4: Construction Authorization * | W4: Addenda * | X4: Financial plan (for approval if > $500M, for review/comment if > $100M) | Y4: Request for Qualifications (RFQ) ** | Z4: Request for Proposals (RFP) * | AA4: Alternative Applicable Standards (AAS) *** | AB4: Alternative Technical Concepts (ATCs) When applicable * | AC4: Bid analysis and concurrence in award *** | AD4: Initial Inspection | AE4: Intermediate Inspections | AF4: In-Depth Inspection | AG4: Final Inspection | AH4: Construction Change Orders * | AI4: Value Engineering change proposals * | AJ4: Final Acceptance | AL4: Project Contacts
B5: NE | C5: 2I3055 | D5: Montgomery | E5: IS 70 | F5: Pavement improvements on eastbound lanes from the Callaway County line to 1.1 miles west of Rte.161 near Mineola. | G5: 2016 | H5: 94 | I5: 0 | J5: 1171 | K5: 1256 | M5: x | R5: x | T5: x | U5: x | V5: x | W5: x | AB5: x | AC5: x | AD5: x | AG5: x | AH5: x | AI5: x | AJ5: x | AL5: Felix Gonzlez (FHWA), Jerad Noland (MoDOT PM) Richard Domzalski (MoDOT RE)
B6: NE | C6: 3I2189 | D6: Montgomery | E6: IS-70 | F6: Pavement improvements on eastbound lanes from 1.1 mile west of Rte. 161 to 2 miles east of Rte. F near New Florence. Let in required combination with 2I3055. | G6: 2016 | H6: 333 | I6: 0 | J6: 3169 | K6: =H6+I6+J6 -> 3502 | L6: This project is already shown in the STIP as a Federal Oversight. Recommended full Federal Oversight - F. Gonzalez 3 3/4 inch overlay. Good project to maintain involvement in the NE District | M6: x | R6: x | T6: x | U6: x | V6: x | W6: x | AB6: x | AC6: x | AD6: x | AG6: x | AH6: x | AI6: x | AJ6: x | AL6: Felix Gonzlez (FHWA), Jerad Noland (MoDOT PM) Richard Domzalski (MoDOT RE)
B7: KC | C7: 4I3022B | D7: Jackson | E7: IS 435 | F7: Bridge improvements at Front Street, Rte. 24 and Rte. 78. $220,000 Open Container funds. Project involves bridges A1698, A1750 and A1682. | G7: 2016 | H7: 548 | I7: 0 | J7: 3459 | K7: =SUM(H7:J7) -> 4007 | U7: x | V7: x | W7: x | AC7: x | AD7: x | AE7: x | AF7: x | AG7: x | AH7: x | AI7: x | AJ7: x | AK7: x | AL7: Kevin Irving (FHWA), Lee Ann Kell (MoDOT PM)
B8: KC | C8: 4I3037 | D8: Platte | E8: IS 29 | F8: Pavement improvements from Rte. 273 north of Platte City to I-435 in Kansas City. | G8: 2016 | H8: 462 | I8: 0 | J8: 4548 | K8: 5010 | U8: x | V8: x | W8: x | AC8: x | AD8: x | AF8: x | AG8: x | AH8: x | AI8: x | AJ8: x | AL8: Kevin Irving (FHWA), James Burgess (MoDOT PM)
B9: KC | C9: 4P2257 | D9: Cass | E9: MO 7 | F9: Roadway improvements from Independence Street to Stella Avenue in Harrisonville. $2,040,000 MARC STP-Urban funds, $510,000 Harrisonville and $145,000 Statewide Transportation Enhancement funds. | G9: 2016 | H9: 1062 | I9: 72 | J9: 3280 | K9: 4414 | AC9: x | AD9: x | AE9: x | AF9: x | AG9: x | AH9: x | AI9: x | AJ9: x | AL9: Kevin Irving (FHWA), Lee Ann Kell (MoDOT PM)
B10: KC | C10: 4P3004 | D10: Jackson | E10: CST MAIN ST | F10: Bridge replacement at Main Street over I-49 in Grandview. $222,000 Statewide Transportation Enhancement funds. Project involves bridge L0950. | G10: 2016 | H10: 842 | I10: 0 | J10: 2860 | K10: 3702 | AC10: x | AF10: x | AL10: Kevin Irving (FHWA), Mark Fisher (MoDOT PM)
B11: KC | C11: 4S3052 | D11: Jackson | E11: US 24 | F11: Pavement and sidewalk improvements from Ewing Avenue to the Rte. 291 outer road in Independence. $430,000 Statewide Transportation Enhancement funds. | G11: 2016 | H11: 560 | I11: 10 | J11: 4002 | K11: 4572 | AC11: x | AD11: x | AE11: x | AF11: x | AG11: x | AH11: x | AI11: x | AJ11: x | AL11: Kevin Irving (FHWA), Lee Ann Kell (MoDOT PM)
B12: SL | C12: 6I1010J | D12: Jefferson | E12: IS 55 | F12: Capacity improvements to northbound I-55 from the northbound on-ramp at Rte. Z to 0.8 miles north of Rte. Z. This project involves bridge A1036. | G12: 2016 | H12: 386 | I12: 47 | J12: 2680 | K12: 3113 | M12: ü | O12: - | R12: ü | U12: ü | V12: x | AC12: x | AF12: x | AI12: x | AL12: Felix Gonzalez (FHWA), Shirley Norris (PM) Christine Redhage (RE)
B13: SL | C13: 6I2104 | D13: St Louis | E13: IS-70 | F13: Bridge improvements at the I-170 interchange. Project involves bridges A2999, A3000, A3001, A3002, A3003, A3004, A3005, A3006, A3007, A3008 and A3009. | G13: 2016 | H13: 939 | I13: 0 | J13: 5814 | K13: 6753 | L13: Recommend O/S at least through prel design, and until final cost and scope is detemrined. (Gbudd) | M13: x | O13: x | Q13: x | R13: x | S13: x | U13: x | V13: x | AB13: x | AC13: x | AD13: x | AF13: x | AH13: x | AI13: x | AL13: Felix Gonzlez (FHWA), Lee Hilner (MoDOT PM), Niall Jahsson (RE)
B14: SL | C14: 6I2326 | D14: St. Charles | E14: IS-70 | F14: Bridge Improvememnts at Fairgrounds Road and 5th Street. | G14: 2016 | H14: 175 | I14: 0 | J14: 1209 | K14: 1384 | L14: Will most likely be let in combo with J6I3026, below, so probably full O/S needed. | M14: ü | N14: ü | O14: ü | P14: x | Q14: x | R14: x | S14: x | T14: x | U14: x | V14: x | W14: x | AB14: x | AC14: x | AD14: x | AE14: x | AF14: x | AG14: x | AH14: x | AI14: x | AJ14: x | AL14: Felix Gonzalez (FHWA), Tim Schroeder (MoDOT PM)
B15: SL | C15: 6I2377C 0641070 | D15: St Louis City | E15: IS-64 | F15: Bridge, ramp, and capacity improvements from 4th Street to Illinois on the eastbound Poplar Street Bridge approaches. Project involves bridges A1500, A1501 and A1503. | G15: 2016 | H15: 5013 | I15: 1000 | J15: 30847 | K15: 36860 | L15: Full O/S recommended. Gbudd | N15: ü | O15: x | P15: ü | Q15: x | R15: ü | S15: ü | T15: x | U15: x | V15: x | W15: x | AB15: x | AC15: x | AD15: x | AE15: x | AG15: x | AH15: x | AI15: x | AJ15: x | AL15: Dawn Perkins (FHWA), Jeff Bohler (MoDOT PM)
B16: SL | C16: 6I2415B | D16: St. Louis | E16: Various | F16: Create Bus Rapid Transit (BRT) and High Occupancy Vehicle (HOV) lanes at various locations in St. Louis County. | G16: 2016 | H16: 130 | I16: 0 | J16: 1020 | K16: 1150 | M16: x | N16: x | O16: x | Q16: x | R16: x | S16: x | U16: x | AB16: x | AD16: x | AF16: x | AL16: Felix Gonzlez (FHWA), Lee Hilner (MoDOT PM)
B17: SL | C17: 6I2423 | D17: St Louis | E17: IS-44 | F17: Interchange improvements at I-44/Rte. 141, intersection improvements at Vance Rd./Rte. 141 and pavement improvements along Rte. 141 from north of Vance Rd. to south of I-44. Design/Build project. $2,550,000 Congestion Mitigation & Air Quality Improvement Program funds. | G17: 2016 | H17: 2966 | I17: 1000 | J17: 21534 | K17: 25500 | L17: This project is already shown in the STIP as a full O/S. This will be a combo project with the current D/B project J63019. Being D/B, it should be O/S. Gbudd | M17: ü | N17: x | O17: x | P17: x | Q17: x | R17: x | S17: x | T17: x | U17: x | V17: x | W17: x | Y17: x | Z17: x | AA17: x | AB17: x | AC17: x | AD17: x | AE17: x | AF17: x | AG17: x | AH17: x | AI17: x | AJ17: x | AL17: Felix Gonzlez (FHWA), Tom Montes & David Simmons (MoDOT PM)
B18: SL | C18: 6I3025 0553093 | D18: St Louis City | E18: IS-55 | F18: Bridge maintenance on the Poplar Street Bridge over the Mississippi River. $2,965,000 of IDOT funds for construction. Project involves bridge A1500. | G18: 2016 | H18: 393 | I18: 0 | J18: 5930 | K18: 6323 | L18: Will most likely be let in combo with J6I3026, below, so probably full O/S needed. | O18: x | Q18: x | T18: x | U18: x | V18: x | W18: x | AB18: x | AC18: x | AD18: x | AE18: x | AG18: x | AH18: x | AI18: x | AJ18: x | AL18: Dawn Perkins (FHWA), Jeff Bohler (MoDOT PM)
B19: SL | C19: 6I3026 0553092 | D19: St Louis City | E19: IS-55 | F19: Bridge improvements on the eastbound Poplar Street bridge over Mississippi River. Project involves bridge A1500. | G19: 2016 | H19: 790 | I19: 0 | J19: 15400 | K19: 16190 | L19: Major bridge crossing. Recommend maintaining full O/S. Gbudd | N19: ü | O19: x | P19: ü | Q19: x | R19: ü | S19: ü | T19: x | U19: x | V19: x | W19: x | AB19: x | AC19: x | AD19: x | AE19: x | AG19: x | AH19: x | AI19: x | AJ19: x | AL19: Dawn Perkins (FHWA), Jeff Bohler (MoDOT PM)
B20: SL | C20: 6I3031 | D20: St Louis City | E20: IS-44 | F20: Rehabilitate bridges at the I-44/I-55 interchange. Project involves bridges A1542, A1536, A1092, A1535, and A1093. | G20: 2016 | H20: 653 | I20: 0 | J20: 4202 | K20: 4855 | L20: Recommend at least partial O/S until full scope is known, and the final estimate is determined. May want to have Conceptual Report and TS&L reviewed. Gbudd | M20: ü | O20: ü | Q20: x | R20: x | U20: ü | V20: x | AB20: x | AC20: x | AF20: x | AH20: x | AI20: x | AL20: Felix Gonzlez (FHWA), Jeff Bohler (MoDOT PM)
B21: SL | C21: 6I3034D | D21: St. Louis | E21: IS 44 | F21: Pavement and bridge improvement from Murdoch to River Des Peres at BNSF railroad. Project involves bridges A1739 and A1733. | G21: 2016 | H21: 1296 | I21: 57 | J21: 15967 | K21: 17320 | O21: ü | Q21: x | R21: x | T21: x | U21: x | V21: x | W21: x | AB21: x | AC21: x | AF21: x | AH21: x | AI21: x | AL21: Felix Gonzlez (FHWA), Jeff Bohler (MoDOT PM)
B22: SL | C22: 6P2321 0471072 | D22: Franklin | E22: 47 | F22: FY 14 TIGER project: Replace bridge over the Missouri River from Augusta Bottom road to Third Street in Washington. $10,000,000 TIGER VI funds, $500,000 Washington, $250,000 Franklin County and $50,000 Warren County. Project involves bridge K0969. | G22: 2016 | H22: 6619 | I22: 476 | J22: 50195 | K22: 57290 | L22: Recommend full O/S for duration of project (Gbudd). Potential ATC Project (Sbowles) | M22: ü | O22: ü | P22: ü | R22: ü | S22: ü | T22: x | U22: x | V22: x | W22: x | AB22: x | AC22: x | AD22: x | AE22: x | AF22: x | AG22: x | AH22: x | AI22: x | AJ22: x | AL22: Felix Gonzlez (FHWA), Shirly Norris (MoDOT PM)
B23: SL | C23: 6P3071 | D23: St Charles | E23: 61 | F23: New interchange at Rte. P and Peine Road and safety improvements at median crossovers from north of Peine Road to north of Rte. A in Wentzville. $4,331,337 Cost Share, $2,795,199 Wentzville and $3,500,000 St. Charles County. | G23: 2016 | H23: 1640 | I23: 788 | J23: 10085 | K23: 12513 | M23: ü | O23: x | P23: ü | Q23: x | R23: x | U23: x | V23: x | AB23: x | AC23: x | AF23: x | AH23: x | AI23: x | AL23: Felix Gonzlez (FHWA), Tim Schroeder (MoDOT PM)
B24: SL | C24: 6S3047 150515-F03 FAS-S500(35) | D24: St Charles | E24: IS-70 | F24: Intersection Improvements at I-70 westbound ramps and north outer road. $944,000 Congestion Mitigation and Air Quality Improvement Program funds. | G24: 2016 | H24: 163 | I24: 8 | J24: 2150 | K24: 2321 | L24: Full FHWA O/S recommended. Gbudd | R24: ü | T24: ü | U24: ü | AF24: x | AK24: x | AL24: Felix Gonzlez (FHWA), Tim Schroeder (MoDOT PM)
B25: SW | C25: 8I3000 | D25: Greene | E25: IS-44 | F25: Pavement improvements from west of Rte. 266 (Chestnut Expressway) to east of Rte. 125. $258,000 Open Container funds. miles east of Rte. 65. | G25: 2016 | H25: 608 | I25: 0 | J25: 7819 | K25: 8427 | O25: x | P25: x | U25: x | V25: x | AC25: x | AD25: x | AG25: x | AH25: x | AI25: x | AJ25: x | AL25: Mike McGee (FHWA), Jen Thomas (MoDOT PM)
B26: SW | C26: 8P2196 | D26: Greene | E26: 65 | F26: Railroad crossing grade separation at Chestnut Expressway and BNSF railway 0.2 mile west of Rte. 65. | G26: 2016 | H26: 1013 | I26: 4067 | J26: 9696 | K26: 14776 | O26: x | Q26: x | R26: x | S26: x | T26: x | U26: x | V26: x | W26: x | AB26: x | AC26: x | AD26: x | AE26: x | AG26: x | AH26: x | AI26: x | AJ26: x | AL26: Mike McGee (FHWA), Don Saiko (MoDOT PM)
B27: SW | C27: N/A Not in FMIS yet | D27: Taney | E27: 76 | F27: Highway 76 Country Boulevard Complete Streets (Spirit of 76) | G27: 2016 | J27: 76015 | K27: 76015 | P27: x | R27: x | T27: x | U27: x | V27: x | W27: x | X27: x | AC27: x | AD27: x | AE27: x | AH27: x | AI27: x | AJ27: x | AL27: Scott Bowles (FHWA), Beth Schaller (MoDOT LPA Area Engineer)
B28: SE | C28: 0P2298 | D28: St. Francois | E28: US 67 | F28: Pavement improvements from St. Francois River Bridge to Jefferson County. | G28: 2016 | H28: 1012 | I28: 0 | J28: 8284 | K28: 9296 | O28: x | R28: x | U28: x | V28: x | AC28: x | AD28: x | AG28: x | AH28: x | AI28: x | AJ28: x | AL28: Mike McGee (FHWA)
B29: SE | C29: 9P3121 | D29: Bollinger | E29: MO 72 | F29: Pavement improvements from Rte. 51 to Rte. 34/25/61 intersection in Jackson. | G29: 2016 | H29: 556 | I29: 0 | J29: 6165 | K29: =SUM(H29:J29) -> 6721 | O29: x | R29: x | U29: x | V29: x | AC29: x | AD29: x | AG29: x | AH29: x | AI29: x | AJ29: x | AL29: Mike McGee (FHWA)
L30: =K30*0.8*1000 -> 0
Y31: LEGEND
N33: x | P33: Action requiring FHWA involvement | AA33: * | AC33: Submittal requires FHWA approval
N35: ü | P35: Action completed | AA35: ** | AC35: Submittal for FHWA review/comment
N37: - | P37: No FHWA approvals/actions were required | AA37: *** | AC37: Submittal requires FHWA concurrence
N39: ü | P39: Additional FHWA approval action taken

Sheet 2017
B1: Stewardship and Oversight Plan
F2: 2017 Total Selected Construction Cost: 2017 STIP Construction Award Amount: | G2: $116,233,000 $338,700,000 | M2: Last Updated : 8/14/2015 1:27:48 PM
B3: 2017 STIP Project | M3: Design | Y3: Design Build | AB3: Construction
B4: District | C4: Job No. | D4: County | E4: Route | F4: Description | G4: State FY | H4: Engineering ($1,000) | I4: ROW ($1,000) | J4: Construction ($1,000) | K4: Total ($1,000) | L4: Notes | M4: Conceptual Report ** | N4: Access Justification Requests * | O4: Design Exceptions * | P4: Value Engineering (VE) ** | Q4: Experimental Features * | R4: Preliminary Plans (Identify Percent Complete with FHWA Contact) * | S4: Bridge Type, Size, and Location (TS&L) ** | T4: Final Plans, Specifications, and Estimate (PS&E) approval * | U4: Transportation Management Plan (Includes TTCP) * | V4: Construction Authorization * | W4: Addenda * | X4: Financial plan (for approval if > $500M, for review/comment if > $100M) | Y4: Request for Qualifications (RFQ) ** | Z4: Request for Proposals (RFP) * | AA4: Alternative Applicable Standards (AAS) *** | AB4: Alternative Technical Concepts (ATCs) When applicable * | AC4: Bid analysis and concurrence in award *** | AD4: Initial Inspection | AE4: Intermediate Inspections | AF4: In-Depth Inspection | AG4: Final Inspection | AH4: Construction Change Orders * | AI4: Value Engineering change proposals * | AJ4: Final Acceptance | AL4: Project Contacts
B5: NW | C5: 1P0875 | D5: Dekalb | E5: US 36 | F5: Replace bridge decks in the eastbound and westbound lanes over I‐35 in Cameron. Project involves bridge A1059. | G5: 2017 | H5: 255 | I5: 0 | J5: 1988 | K5: =SUM(H5:J5) -> 2243 | M5: x | O5: x | Q5: x | R5: x | S5: x | T5: x | U5: x | V5: x | W5: x | AC5: x | AD5: x | AE5: x | AF5: x | AG5: x | AH5: x | AI5: x | AJ5: x | AL5: Kevin Irving (FHWA), Wes Moore (MoDOT PM)
B6: NW | C6: 1P3086 | D6: Dekalb | E6: US 36 | F6: Reconstruct the horizontal curve in the westbound lane 0.2 mile east of Rte. 33 near Osborn. | G6: 2017 | H6: 356 | I6: 0 | J6: 3137 | K6: =SUM(H6:J6) -> 3493 | M6: x | O6: x | Q6: x | R6: x | T6: x | U6: x | V6: x | W6: x | AC6: x | AD6: x | AE6: x | AF6: x | AG6: x | AH6: x | AI6: x | AJ6: x | AL6: Kevin Irving (FHWA), Wes Moore (MoDOT PM)
B7: NE | C7: 3P2206 | D7: Ralls | E7: US 61 | F7: Pavement and intersection improvements on northbound and southbound lanes from Warren Barrett Drive in Hannibal to 0.5 mile south of Rte. 19 near New London. $1,672,000 Open Container funds. | G7: 2017 | H7: 423 | I7: 0 | J7: 4981 | K7: =SUM(H7:J7) -> 5404 | M7: x | R7: x | T7: x | U7: x | V7: x | W7: x | AC7: x | AF7: x | AH7: x | AI7: x | AJ7: x | AL7: Felix Gozalez (FHWA), Jerad Noland (PM)
B8: KC | C8: 4I1980 | D8: Clay | E8: IS 435 | F8: Operational improvements to the interchange at Rte. 210. | G8: 2017 | H8: 2729 | I8: 0 | J8: 14771 | K8: =SUM(H8:J8) -> 17500 | L8: AJR required | R8: x | T8: x | V8: x | AB8: - | AC8: x | AD8: x | AE8: x | AF8: x | AG8: x | AH8: x | AI8: x | AJ8: x | AL8: Kevin Irving (FHWA), Debbie Huffman (MoDOT PM)
B9: KC | C9: 4I3105 | D9: Platte | E9: IS 29 | F9: Pavement improvements from Todd Creek to Vivion Road. | G9: 2017 | H9: 844 | I9: 0 | J9: 8380 | K9: =H9+J9 -> 9224 | M9: x | O9: x | R9: x | U9: x | V9: x | AB9: x | AC9: x | AD9: x | AF9: x | AG9: x | AH9: x | AI9: x | AJ9: x | AL9: Kevin Irving (FHWA), James Burgess (MoDOT PM)
B10: KC | C10: 4P2292 | D10: Jackson | E10: US 50 | F10: Interchange improvements at Rte. 291 South junction in Lee's Summit. Project involves bridge A1483. | G10: 2017 | H10: 2322 | I10: 827 | J10: 12962 | K10: =SUM(H10:J10) -> 16111 | O10: x | T10: x | U10: x | V10: x | W10: x | AB10: x | AC10: x | AD10: x | AE10: x | AF10: x | AG10: x | AH10: x | AI10: x | AJ10: x | AL10: Kevin Irving (FHWA), Lee Ann Kell (MoDOT PM)
B11: KC | C11: 4P3002 | D11: Cass | E11: MO 291 | F11: Capacity improvements from Waters Road to Royal Street in Harrisonville. | G11: 2017 | H11: 998 | I11: 491 | J11: 4118 | K11: 5607 | O11: x | R11: x | T11: x | U11: x | V11: x | W11: x | AB11: x | AC11: x | AD11: x | AF11: x | AG11: x | AH11: x | AI11: x | AJ11: x | AL11: Kevin Irving (FHWA), Lee Ann Kell (MoDOT PM)
B12: KC | C12: 4U1108C | D12: Platte | E12: MO 45 | F12: Corridor improvements, including roadway widening and bicycle/pedestrian accommodations, from Rt. K to I-435 in Platte County | G12: 2017 | H12: 2210 | I12: 1145 | J12: 9602 | K12: 12957 | O12: x | T12: x | U12: x | V12: x | W12: x | AB12: x | AC12: x | AD12: x | AE12: x | AF12: x | AG12: x | AH12: x | AI12: x | AJ12: x | AL12: Kevin Irving (FHWA), James Burgess (MoDOT PM)
B13: CD | C13: 5I3001 | D13: Boone | E13: IS 70 | F13: Pavement improvements on the eastbound and westbound lanes from the Missouri River to near the St. Charles Road interchange in Columbia. | G13: 2017 | H13: 522 | I13: 0 | J13: 6432 | K13: 6954 | M13: x | R13: x | U13: x | V13: x | AC13: x | AD13: x | AG13: x | AH13: x | AI13: x | AJ13: x | AL13: Mike McGee (FHWA)
B14: CD | C14: 5L1700 | D14: Various | E14: Various | F14: Pavement and bridge improvements on various primary routes in the Central District. | G14: 2017 | H14: 570 | I14: 0 | J14: 7725 | K14: 8295 | M14: x | AL14: Mike McGee (FHWA)
B15: SL | C15: 6I2418 | D15: St. Charles | E15: 70 | F15: Scoping for interchange improvements at Rte. K. Future Cost Share project with O'Fallon. Maximum Cost Share funds $3,878,533. Project involves bridge L0710. | G15: 2017 | H15: 92 | I15: NA | K15: =SUM(H15:J15) -> 92 | M15: x | N15: x | O15: x | Q15: x | R15: x | S15: x | T15: x | U15: x | V15: x | W15: x | AB15: x | AC15: x | AD15: x | AE15: x | AF15: x | AG15: x | AH15: x | AI15: x | AJ15: x | AL15: Felix Gonzlez (FHWA), Tim Schroeder (MoDOT PM)
B16: SL | C16: 6I3113 | D16: St. Louis | E16: IS 270 | F16: Pavement improvements from I-44 to I-55. | G16: 2017 | H16: 1041 | I16: 0 | J16: 7917 | K16: 8958 | M16: x | R16: x | U16: x | V16: x | W16: x | AC16: x | AF16: x | AH16: x | AI16: x | AJ16: x | AL16: Felix Gonzalez (FHWA) Tom Montes (PM)
B17: SL | C17: 6I3114 | D17: St. Louis | E17: IS 44 | F17: Pavement improvements from Rte. 141 to Rte. 109. | G17: 2017 | H17: 476 | I17: 0 | J17: 3671 | K17: 4147 | M17: x | R17: x | U17: x | V17: x | W17: x | AC17: x | AF17: x | AH17: x | AI17: x | AJ17: x | AL17: Felix Gonzalez (FHWA) Tom Montes (PM)
B18: SW | C18: 7I3049 | D18: Lawrence | E18: IS 44 | F18: Eastbound bridge improvement over Spring River. Project involves bridge A0977. | G18: 2017 | H18: 363 | I18: 0 | J18: 2678 | K18: 3041 | M18: x | U18: x | AF18: x | AL18: Mike McGee (FHWA)
B19: SW | C19: 8P3036 | D19: Greene | E19: US 65 | F19: Interchange improvements at Rte. YY (Division Street). $1,519,395 Cost Share, $1,823,292 Springfield STP-Urban, $455,823 Springfield. | G19: 2017 | H19: 336 | I19: 1190 | J19: 2967 | K19: 4493 | O19: x | Q19: x | R19: x | T19: x | U19: x | V19: x | W19: x | AB19: x | AC19: x | AD19: x | AG19: x | AH19: x | AI19: x | AJ19: x | AL19: Mike McGee (FHWA), Jen Thomas (MoDOT PM)
B20: SE | C20: 9I3111 | D20: Scott | E20: IS 55 | F20: Pavement improvements from I-57 to Arkansas State line. | G20: 2017 | H20: 1125 | I20: 0 | J20: 13140 | K20: 14265 | O20: x | R20: x | U20: x | V20: x | AC20: x | AD20: x | AG20: x | AH20: x | AI20: x | AJ20: x | AL20: Mike McGee (FHWA)
B21: SE | C21: 0I0956 | D21: Scott | E21: IS 55 | F21: Interchange improvements south of Scott City. | G21: 2017 | H21: 2081 | I21: 1913 | J21: 11764 | K21: 15758 | L21: AJR | N21: ü | O21: x | Q21: x | R21: x | S21: x | T21: x | U21: x | V21: x | W21: x | AB21: x | AC21: x | AD21: x | AE21: x | AG21: x | AH21: x | AI21: x | AJ21: x | AL21: Mike McGee (FHWA), Eric Krapf (MoDOT PM)
Y23: LEGEND
L24: =K24*0.8*1000 -> 0
N25: x | P25: Action requiring FHWA involvement | AA25: * | AC25: Submittal requires FHWA approval
N27: ü | P27: Action completed | AA27: ** | AC27: Submittal for FHWA review/comment
N29: - | P29: No FHWA approvals/actions were required | AA29: *** | AC29: Submittal requires FHWA concurrence
N31: ü | P31: Additional FHWA approval action taken

Sheet 2018
B1: Stewardship and Oversight Plan
F2: 2018 Total Selected Construction Cost: 2018 STIP Construction Award Amount: | G2: $79,971,000 $325,000.,000 | M2: Last Updated : 8/14/2015 1:27:48 PM
B3: 2018 STIP Project | M3: Design | Y3: Design Build | AB3: Construction
B4: District | C4: Job No. | D4: County | E4: Route | F4: Description | G4: State FY | H4: Engineering ($1,000) | I4: ROW ($1,000) | J4: Construction ($1,000) | K4: Total ($1,000) | L4: Notes | M4: Conceptual Report ** | N4: Access Justification Requests * | O4: Design Exceptions * | P4: Value Engineering (VE) ** | Q4: Experimental Features * | R4: Preliminary Plans (Identify Percent Complete with FHWA Contact) * | S4: Bridge Type, Size, and Location (TS&L) ** | T4: Final Plans, Specifications, and Estimate (PS&E) approval * | U4: Transportation Management Plan (Includes TTCP) * | V4: Construction Authorization * | W4: Addenda * | X4: Financial plan (for approval if > $500M, for review/comment if > $100M) | Y4: Request for Qualifications (RFQ) ** | Z4: Request for Proposals (RFP) * | AA4: Alternative Applicable Standards (AAS) *** | AB4: Alternative Technical Concepts (ATCs) When applicable * | AC4: Bid analysis and concurrence in award *** | AD4: Initial Inspection | AE4: Intermediate Inspections | AF4: In-Depth Inspection | AG4: Final Inspection | AH4: Construction Change Orders * | AI4: Value Engineering change proposals * | AJ4: Final Acceptance | AL4: Project Contacts
B5: NW | C5: 1I3020 | D5: Holt | E5: IS 29 | F5: Replace bridge deck and expansion joints over the Nodaway River in the southbound lane, 0.8 mile south of Rte. 59 near Oregon. Project involves bridge A1297. | G5: 2018 | H5: 397 | I5: 0 | J5: 3819 | K5: =SUM(H5:J5) -> 4216 | M5: x | R5: x | S5: x | U5: x | V5: x | AC5: x | AD5: x | AF5: x | AL5: Kevin Irving (FHWA) Wes Moore (MoDOT PM)
B6: NE | C6: 2P3059 | D6: Various | E6: Various | F6: Bridge improvements at various primary locations in the Northeast District. | G6: 2018 | H6: 573 | I6: 0 | J6: 3607 | K6: =SUM(H6:J6) -> 4180 | M6: x | O6: x | R6: x | T6: x | U6: x | V6: x | W6: x | AC6: x | AD6: x | AF6: x | AH6: x | AI6: x | AL6: Felicx Gonzalez (FHWA) Jerad Noland (PM)
B7: KC | C7: 3I3009 | D7: Saline | E7: IS 70 | F7: Bridge improvements at Rte. 65. Project involves bridge A0203. | G7: 2018 | H7: 339 | I7: 0 | J7: 2553 | K7: =SUM(H7:J7) -> 2892 | O7: x | R7: x | S7: x | U7: x | V7: x | AC7: x | AD7: x | AF7: x | AL7: Kevin Irving (FHWA) James Shipley (MoDOT PM)
B8: KC | C8: 4I3115 | D8: Jackson | E8: IS 435 | F8: Pavement improvements from the bridge over Raytown Road to Rte. W, Bannister Road. | G8: 2018 | H8: 638 | I8: 0 | J8: 5310 | K8: 5948 | O8: x | R8: x | U8: x | V8: x | AC8: x | AD8: x | AF8: x | AG8: x | AH8: x | AI8: x | AJ8: x | AL8: Kevin Irving (FHWA) Mark Fisher (MoDOT PM)
B9: KC | C9: 4P2256 | D9: Jackson | E9: IS-49 | F9: Interchange and bridge improvements at 155th Street in Grandview, Belton and Kansas City. Project involves bridge A0479. | G9: 2018 | H9: 1080 | I9: 84 | J9: 7846 | K9: 9010 | L9: Proposing DDI and Roundabout - Currently Diamond | N9: ü | O9: ü | R9: ü | S9: ü | T9: x | U9: x | V9: x | AD9: x | AF9: x | AG9: x | AH9: x | AI9: x | AJ9: x | AL9: Kevin Irving (FHWA), Allan Ludiker (MoDOT PM)
B10: KC | C10: 4P2360 | D10: Cass | E10: IS 49 | F10: Bridge improvements over the South Grand River and Tennessee Creek. Project involves bridges A2069, A2641 and A2642. | G10: 2018 | H10: 1190 | I10: 0 | J10: 8132 | K10: 9322 | M10: x | O10: x | Q10: x | R10: x | S10: x | T10: x | U10: x | V10: x | W10: x | AB10: x | AC10: x | AD10: x | AF10: x | AG10: x | AH10: x | AI10: x | AJ10: x | AL10: Kevin Irving (FHWA), Allan Ludiker (MoDOT PM)
B11: SL | C11: 6I2332 | D11: St. Louis City | E11: IS 44 | F11: Bridge improvements at the 3rd Street Viaduct. Project involves bridges L0361, A3162, A3351, A3352 and A3353. | G11: 2018 | H11: 2419 | I11: 0 | J11: 21626 | K11: 24045 | M11: x | O11: x | P11: x | R11: x | S11: x | T11: x | U11: x | V11: x | W11: x | AC11: x | AE11: x | AG11: x | AH11: x | AI11: x | AJ11: x | AL11: Felicx Gonzalez (FHWA), Jeff Bohler (PM)
B12: SL | C12: 6I3109 | D12: St. Charles | E12: IS 70 | F12: Pavement improvements from Rte. 94 in St. Charles County to east of I-270 (McKelvey Road) in St. Louis County. | G12: 2018 | H12: 262 | I12: 0 | J12: 4046 | K12: 4308 | M12: x | O12: x | R12: x | U12: x | V12: x | AC12: x | AF12: x | AH12: x | AI12: x | AL12: Felix Gonzlez (FHWA), Tim Schroeder (MoDOT PM)
B13: SL | C13: 6I3110 | D13: Jefferson | E13: IS 55 | F13: Pavement improvements from Rte. Z to the St. Genevieve County Line. | G13: 2018 | H13: 876 | I13: 0 | J13: 7352 | K13: 8228 | M13: x | O13: x | R13: x | U13: x | V13: x | AC13: x | AF13: x | AH13: x | AI13: x | AL13: Felicx Gonzalez (FHWA), Shirley Norris (PM)
B14: SW | C14: 7P3000 | D14: Jasper | E14: IS 49 | F14: Bridge improvements over the BNSF Railroad and Spring River. Project involves bridges A3556 and A3557. | G14: 2018 | H14: 718 | I14: 0 | J14: 3787 | K14: 4505 | M14: x | O14: x | R14: x | U14: x | V14: x | AC14: x | AF14: x | AG14: x | AH14: x | AI14: x | AJ14: x | AL14: Mike McGee (FHWA)
B15: SW | C15: 7T0043 | D15: Lawrence | E15: MO 39 | F15: Rail crossing improvements on Carnation Drive at BNSF Railway and on Rte. K (Elliot Street) at the BNSF and MNA Railways in Aurora. Close at-grade crossings on Morgan Avenue and McNatt Avenue. $2,700,000 STP Rail Safety, $300,000 Grade Crossing Safety Account. | G15: 2018 | H15: 343 | I15: 306 | J15: 4616 | K15: 5265 | M15: x | R15: x | T15: x | V15: x | AC15: x | AD15: x | AG15: x | AH15: x | AI15: x | AJ15: x | AL15: Mike McGee (FHWA)
B16: SW | C16: 8P2293 | D16: Greene | E16: US 65 | F16: Replace southbound bridge over I-44 in Springfield. $166,134.42 MO108 SAFETEA-LU earmark. Project involves bridge A2071. | G16: 2018 | H16: 753 | I16: 0 | J16: 3445 | K16: 4198 | O16: x | Q16: x | R16: x | S16: x | U16: x | V16: x | AC16: x | AD16: x | AG16: x | AH16: x | AI16: x | AJ16: x | AL16: Mike McGee (FHWA), Don Saiko (MoDOT PM)
B17: SE | C17: 9P3004 | D17: Wright | E17: US 60 | F17: Pavement improvements from the Webster County line to Whetstone Creek | G17: 2018 | H17: 550 | I17: 0 | J17: 3832 | K17: =SUM(H17:J17) -> 4382 | M17: x | O17: x | Q17: x | R17: x | V17: x | AG17: x | AH17: x | AI17: x | AJ17: x | AL17: Mike McGee (FHWA), Eric Krapf (MoDOT PM)
J19: =SUM(J5:J18) -> 79971 | L19: =K19*0.8*1000 -> 0 | Y19: LEGEND
N21: x | P21: Action requiring FHWA involvement | AA21: * | AC21: Submittal requires FHWA approval
N23: ü | P23: Action completed | AA23: ** | AC23: Submittal for FHWA review/comment
N25: - | P25: No FHWA approvals/actions were required | AA25: *** | AC25: Submittal requires FHWA concurrence
N27: ü | P27: Additional FHWA approval action taken

Sheet 2019
B1: Stewardship and Oversight Plan
F2: 2019 Total Selected Construction Cost: 2019 STIP Construction Award Amount: | G2: $25,833,000 $325,000,000 | M2: Last Updated : 8/14/2015 1:27:48 PM
B3: 2019 STIP Project | M3: Design | Y3: Design Build | AB3: Construction
B4: District | C4: Job No. | D4: County | E4: Route | F4: Description | G4: State FY | H4: Engineering ($1,000) | I4: ROW ($1,000) | J4: Construction ($1,000) | K4: Total ($1,000) | L4: Notes | M4: Conceptual Report ** | N4: Access Justification Requests * | O4: Design Exceptions * | P4: Value Engineering (VE) ** | Q4: Experimental Features * | R4: Preliminary Plans (Identify Percent Complete with FHWA Contact) * | S4: Bridge Type, Size, and Location (TS&L) ** | T4: Final Plans, Specifications, and Estimate (PS&E) approval * | U4: Transportation Management Plan (Includes TTCP) * | V4: Construction Authorization * | W4: Addenda * | X4: Financial plan (for approval if > $500M, for review/comment if > $100M) | Y4: Request for Qualifications (RFQ) ** | Z4: Request for Proposals (RFP) * | AA4: Alternative Applicable Standards (AAS) *** | AB4: Alternative Technical Concepts (ATCs) When applicable * | AC4: Bid analysis and concurrence in award *** | AD4: Initial Inspection | AE4: Intermediate Inspections | AF4: In-Depth Inspection | AG4: Final Inspection | AH4: Construction Change Orders * | AI4: Value Engineering change proposals * | AJ4: Final Acceptance | AL4: Projkect Contacts
B5: NW | C5: 1I3093 | D5: Holt | E5: IS-29 | F5: Resurface driving lanes and shoulders from Rte. W to Rte. 118 at Mound City. | G5: 2019 | H5: 869 | I5: 0 | J5: 7769 | K5: =SUM(H5:J5) -> 8638 | M5: x | O5: x | R5: x | U5: x | V5: x | AC5: x | AD5: x | AF5: x | AG5: x | AH5: x | AI5: x | AJ5: x | AL5: Kevin Irving (FHWA), Wes Moore (MoDOT PM)
B6: NW | C6: 1I3099 | D6: Holt | E6: IS 29 | F6: Bridge improvements in the northbound and southbound lanes over Kimsey Creek and Rte. E near Mound City. Project involves bridges A1770 and A1771 | G6: 2019 | H6: 415 | I6: 0 | J6: 3856 | K6: 4271 | M6: x | O6: x | R6: x | S6: x | T6: x | U6: x | V6: x | W6: x | AC6: x | AD6: x | AF6: x | AG6: x | AH6: x | AI6: x | AJ6: x | AL6: Kevin Irving (FHWA), Wes Moore (MoDOT PM)
B7: NE | C7: 2P3095 | D7: Audrain | E7: MO 22 | F7: Pavement improvements from 0.1 mile west of Rte. E in Audrain County near Mexico to Rte. F in Boone County. | G7: 2019 | H7: 120 | I7: 0 | J7: 1716 | K7: 1836 | M7: x | O7: x | R7: x | U7: x | V7: x | AC7: x | AF7: x | AH7: x | AI7: x | AJ7: x | AL7: Felix Gonzlez (FHWA), Jerad Noland (PM)
B8: CD | C8: 5P3015 | D8: Cole | E8: Dix Rd | F8: Bridge improvements at Dix Road over Rte. 50 in Jefferson City. Project involves bridge A1187. | G8: 2019 | H8: 100 | I8: 0 | J8: 1004 | K8: 1104 | M8: x | O8: x | R8: x | T8: x | U8: x | W8: x | AD8: x | AG8: x | AH8: x | AI8: x | AJ8: x | AL8: Mike McGee (FHWA)
B9: SW | C9: 7P2212D | D9: Greene | E9: US 65 | F9: Pavement improvements on various sections of the southbound lanes from Pomme de Terre River to Rte. KK. | G9: 2019 | H9: 193 | I9: 0 | J9: 2764 | K9: 2957 | M9: x | O9: x | R9: x | U9: x | V9: x | AC9: x | AG9: x | AH9: x | AI9: x | AJ9: x | AL9: Mike McGee (FHWA)
B10: SW | C10: 7P3076 | D10: Taney | E10: US 65 | F10: Pavement improvements on various sections from 0.9 mile north of Rte. 465 to Arkansas State line. | G10: 2019 | H10: 345 | I10: 0 | J10: 5530 | K10: 5875 | M10: x | O10: x | R10: x | U10: x | V10: x | AC10: x | AF10: x | AG10: x | AH10: x | AI10: x | AJ10: x | AL10: Mike McGee (FHWA)
B11: SE | C11: 9P2243 | D11: Texas | E11: US 63 | F11: Pavement improvements from Rte. 32 to Rte. E. | G11: 2019 | H11: 235 | I11: 0 | J11: 3194 | K11: 3429 | M11: x | O11: x | R11: x | U11: x | V11: x | AC11: x | AG11: x | AH11: x | AI11: x | AJ11: x | AL11: Mike McGee (FHWA)
L13: =K12*0.8*1000 -> 0 | Y13: LEGEND
N15: x | P15: Action requiring FHWA involvement | AA15: * | AC15: Submittal requires FHWA approval
N17: ü | P17: Action completed | AA17: ** | AC17: Submittal for FHWA review/comment
N19: - | P19: No FHWA approvals/actions were required | AA19: *** | AC19: Submittal requires FHWA concurrence
N21: ü | P21: Additional FHWA approval action taken

Sheet 2020
B1: Stewardship and Oversight Plan
F2: 2020 Total Selected Construction Cost: 2020 STIP Construction Award Amount: | G2: $43,216,000 $325,000,000 | M2: Last Updated : 6/16/2015 12:02:48 PM
B3: 2020 STIP Project | M3: Design | Y3: Design Build | AB3: Construction
B4: District | C4: Job No. | D4: County | E4: Route | F4: Description | G4: State FY | H4: Engineering ($1,000) | I4: ROW ($1,000) | J4: Construction ($1,000) | K4: Total ($1,000) | L4: Notes | M4: Conceptual Report ** | N4: Access Justification Requests * | O4: Design Exceptions * | P4: Value Engineering (VE) ** | Q4: Experimental Features * | R4: Preliminary Plans (Identify Percent Complete with FHWA Contact) * | S4: Bridge Type, Size, and Location (TS&L) ** | T4: Final Plans, Specifications, and Estimate (PS&E) approval * | U4: Transportation Management Plan (Includes TTCP) * | V4: Construction Authorization * | W4: Addenda * | X4: Financial plan (for approval if > $500M, for review/comment if > $100M) | Y4: Request for Qualifications (RFQ) ** | Z4: Request for Proposals (RFP) * | AA4: Alternative Applicable Standards (AAS) *** | AB4: Alternative Technical Concepts (ATCs) When applicable * | AC4: Bid analysis and concurrence in award *** | AD4: Initial Inspection | AE4: Intermediate Inspections | AF4: In-Depth Inspection | AG4: Final Inspection | AH4: Construction Change Orders * | AI4: Value Engineering change proposals * | AJ4: Final Acceptance | AL4: Projkect Contacts
B5: NE | C5: 3I2195 | D5: Montgomery | E5: IS-70 | F5: Replace bridge over Loutre River 2.2 miles west of Rte. 161 near Danville. Project involves bridge A0971. | G5: 2020 | H5: 467 | I5: 0 | J5: 4750 | K5: =SUM(H5:J5) -> 5217 | L5: Recommended full Federal Oversight - F. Gonzalez | M5: x | O5: x | Q5: x | R5: x | S5: x | T5: x | U5: x | V5: x | W5: x | AB5: x | AC5: x | AD5: x | AF5: x | AH5: x | AI5: x | AJ5: x | AL5: Felix Gonzlez (FHWA), Jerad Noland (MoDOT PM)
B6: KC | C6: 4P2332C | D6: Jackson | E6: US 71 | F6: Pavement improvements from I-670 to Swope Parkway in Kansas City. | G6: 2020 | H6: 159 | I6: 0 | J6: 1837 | K6: =SUM(H6:J6) -> 1996 | M6: x | O6: x | Q6: x | R6: x | U6: x | V6: x | AF6: x | AL6: Kevin Irving (FHWA)
B7: SL | C7: 6I1896 | D7: St Louis | E7: IS-270 | F7: Bridge replacement at the Rte. N interchange. Project involves bridge L0745. Potential Design/Build project. | G7: 2020 | H7: 1293 | I7: 0 | J7: 8194 | K7: 9487 | M7: x | N7: x | O7: x | Q7: x | R7: x | S7: x | T7: x | U7: x | V7: x | W7: x | Y7: x | Z7: x | AA7: x | AC7: x | AD7: x | AE7: x | AF7: x | AG7: x | AH7: x | AI7: x | AJ7: x | AL7: Felix Gonzlez (FHWA), Lee Hilner (MoDOT PM)
B8: SL | C8: 6I2233 | D8: St Louis | E8: IS-270 | F8: Bridge replacement at the Rte. AC interchange. Project involves bridge A0223. Potential Design/Build project. | G8: 2020 | H8: 930 | I8: 0 | J8: 7684 | K8: 8614 | M8: x | N8: x | O8: x | Q8: x | R8: x | S8: x | T8: x | U8: x | V8: x | W8: x | Y8: x | Z8: x | AA8: x | AC8: x | AD8: x | AE8: x | AF8: x | AG8: x | AH8: x | AI8: x | AJ8: x | AL8: Felix Gonzlez (FHWA), Lee Hilner (MoDOT PM)
B9: SW | C9: 7P0601 | D9: McDonald | E9: 71 | F9: Roadway improvements from Pineville to the Arkansas State line (Bella Vista). Construction funding from 7P2157. $12,017,701 SAFETEA-LU earmark DEMO ID MO118. Amendment 3 new major project. | G9: 2020 | H9: 13420 | I9: 4610 | J9: 13777 | K9: 31807 | M9: x | O9: x | P9: x | Q9: x | R9: x | S9: x | T9: x | U9: x | V9: x | W9: x | AB9: x | AC9: x | AD9: x | AE9: x | AG9: x | AH9: x | AI9: x | AJ9: x | AL9: Mike McGee (FHWA), Kristi Bachman (MoDOT PM)
B10: SW | C10: 7P0797 | D10: Bates | E10: US 71 | F10: Various improvements from Cass County to I-44 as part of the upgrade to I-49. Amendment 3 new major project. | G10: 2020 | H10: 1008 | I10: 0 | J10: 6974 | K10: 7982 | M10: x | O10: x | R10: x | U10: x | V10: x | AC10: x | AD10: x | AG10: x | AH10: x | AI10: x | AJ10: x | AL10: Mike McGee (FHWA), Kristi Bachman (MoDOT PM)
L12: =K11*0.8*1000 -> 0 | Y12: LEGEND
N14: x | P14: Action requiring FHWA involvement | AA14: * | AC14: Submittal requires FHWA approval
N16: ü | P16: Action completed | AA16: ** | AC16: Submittal for FHWA review/comment
N18: - | P18: No FHWA approvals/actions were required | AA18: *** | AC18: Submittal requires FHWA concurrence
N20: ü | P20: Additional FHWA approval action taken
